[Event "15th Arad Open 2022"]
[Site "Arad"]
[Date "2022.08.12"]
[Round "7.6"]
[White "Sedlak, Nikola"]
[Black "Herczeg, Marcell"]
[Result "1-0"]
[ECO "C00"]
[WhiteElo "2480"]
[BlackElo "2044"]
[Annotator "TA"]
[PlyCount "77"]
[EventDate "2022.08.08"]
[EventType "swiss"]
[EventCountry "ROU"]
[SourceTitle "playchess.com"]
[Source "ChessBase"]
[SourceQuality "1"]
[TimeControl "5400+30"]

{[%evp 16,77,0,-19,1,-1,18,22,26,12,29,13,127,126,116,121,121,124,130,130,214,158,195,143,235,137,177,160,162,163,160,167,160,146,135,76,385,403,789,760,802,328,314,327,325,324,381,312,391,355,421,310,439,427,442,423,423,384,408,388,414,343,509,502]} 1. Nf3 {[%emt 0:00:09]} d5 {[%emt 0:00:46]} 2. g3 {[%emt 0:00:10]} Nf6 {[%emt 0:00:42]} 3. Bg2 {[%emt 0:00:07]} e6 {[%emt 0:00:40]} 4. O-O {[%emt 0:00:12]} c5 {[%emt 0:02:43]} 5. d3 {[%emt 0:01:34]} Nc6 {[%emt 0:02:28]} 6. Nbd2 {[%emt 0:01:05]} Be7 {[%emt 0:04:27]} 7. e4 {[%emt 0:03:50]} O-O {[%emt 0:04:04]} 8. Re1 {[%emt 0:00:07]} Qc7 {[%emt 0:00:19]} 9. c3 {[%emt 0:01:27]} Re8 {[%emt 0:13:53] C00: French: Unusual White 2nd moves.} 10. Nf1 {[%emt 0:04:51] [#]} h6 $146 {[%emt 0:08:50]} ({Predecessor:} 10... b5 11. Bf4 Qb6 12. e5 Nd7 13. h4 a5 14. Ne3 a4 15. Rc1 Ra7 16. d4 cxd4 17. cxd4 {0-1 (54) Oratovsky,M (2452)-Suarez Garcia,C (2472) Elgoibar 2017}) 11. Bf4 {[%emt 0:02:35]} e5 {[%emt 0:06:52] [#] The position is equal.} 12. Nxe5 {[%emt 0:02:41]} Nxe5 {[%emt 0:09:34]} 13. d4 $1 {[%emt 0:00:12]} Bd6 {[%emt 0:01:01]} ({Don't do} 13... Nxe4 14. Ne3 $16) (13... cxd4 $11 14. cxd4 Qb6 $1 15. Bxe5 dxe4) 14. dxe5 $16 {[%emt 0:00:19]} Bxe5 {[%emt 0:00:30]} 15. Bxe5 {[%emt 0:00:11]} ({Much less strong is} 15. exd5 Bxf4 16. Rxe8+ Nxe8 $14) 15... Rxe5 {[%emt 0:00:42]} 16. exd5 {[%emt 0:00:45] And now d6 would win.} Bg4 {[%emt 0:04:19]} 17. Qa4 {[%emt 0:02:52]} Rh5 {[%emt 0:08:11]} (17... Rxe1 $16 18. Rxe1 Bd7) 18. Ne3 {[%emt 0:02:59]} Bd7 {[%emt 0:05:49]} 19. Qb3 {[%emt 0:00:18]} (19. Qa3 $18) 19... Bh3 {[%emt 0:09:21]} (19... Re5 $16 20. f4 Ree8) 20. Bf3 {[%emt 0:05:16]} (20. Bxh3 $18 Rxh3 21. d6 Qxd6 22. Qxb7) 20... Rg5 {[%emt 0:04:40]} 21. d6 $36 {[%emt 0:04:38][%mdl 2048] White is in control.} Qxd6 {[%emt 0:01:03]} 22. Qxb7 {[%emt 0:00:07]} Rb8 {[%emt 0:01:35]} 23. Qxa7 {[%emt 0:00:10] Hoping for a4.} Rxb2 {[%emt 0:01:41]} 24. Nc4 {[%emt 0:00:27]} Qf4 {[%emt 0:00:55][%cal Of4f3]} 25. Ne5 {[%emt 0:02:19]} (25. Qa8+ $142 Rb8 26. Kh1 $1) 25... Ne8 $2 {[%emt 0:06:51][%mdl 8192] A mistake that costs the game.} (25... Nd7 $16 26. Qa8+ Rb8) 26. Qe7 $18 {[%emt 0:02:32] Dancing on a razor blade.} ({Wrong is} 26. Nd3 $2 {[#]} Qxf3 $1 27. Rxe8+ Kh7 $19) 26... Rb8 {[%emt 0:00:13]} (26... Nf6 $142 27. Qxf7+ Kh8) 27. Bg2 {[%emt 0:02:31]} Qf5 {[%emt 0:00:55]} 28. Qxf7+ {[%emt 0:02:43]} Qxf7 {[%emt 0:00:23]} 29. Nxf7 {[%emt 0:00:09]} Kxf7 {[%emt 0:00:14]} 30. Bxh3 {[%emt 0:00:11]} Rg6 {[%emt 0:00:43]} 31. Re5 {[%emt 0:04:37]} Rf6 {[%emt 0:00:49]} 32. Rxc5 {[%emt 0:00:36]} Rb2 {[%emt 0:00:04]} 33. Rf5 {[%emt 0:00:11]} Rc2 {[%emt 0:00:06]} (33... Rxf5 {was worth a try.} 34. Bxf5 Nd6) 34. a4 {[%emt 0:00:28][%cal Ba2a4,Ba4a5,Ba5a6][%mdl 32]} Rxc3 {[%emt 0:00:11]} 35. a5 {[%emt 0:00:16]} Rc7 {[%emt 0:00:19]} 36. a6 {[%emt 0:00:51]} Ra7 {[%emt 0:02:37]} 37. Rxf6+ {[%emt 0:54:34]} Kxf6 {[%emt 0:00:00]} 38. Bf1 {[%emt 0:00:00]} Nc7 {[%emt 0:00:00]} (38... Ke7 $142 39. Re1+ Kd8) 39. Rb1 {[%emt 0:00:00] Weighted Error Value: White=0.38/Black=0.69} 1-0

[Event "15th Arad Open 2022"]
[Site "Arad"]
[Date "2022.08.12"]
[Round "7.7"]
[White "Ardeleanu, Alin"]
[Black "Ungureanu, Sandu"]
[Result "1-0"]
[ECO "B52"]
[WhiteElo "2290"]
[BlackElo "2011"]
[Annotator "TA"]
[PlyCount "131"]
[EventDate "2022.08.08"]
[EventType "swiss"]
[EventCountry "ROU"]
[SourceTitle "playchess.com"]
[Source "ChessBase"]
[SourceQuality "1"]
[TimeControl "5400+30"]

{[%evp 11,131,12,10,0,22,22,22,13,29,24,23,27,29,24,41,10,0,0,0,0,7,-25,-27,-46,23,0,4,0,0,0,0,-74,-10,-15,11,0,69,45,95,28,137,83,72,68,129,117,166,149,172,190,174,167,247,220,200,218,164,103,118,-13,172,172,172,172,172,172,172,172,172,172,251,214,404,382,612,608,570,585,464,311,850,774,761,700,697,575,562,525,475,466,1119,894,2822,2556,2237,1878,925,908,6107,5654,5422,5171,5410,88,5410,5057,1917,317,29956,29962,29962,29963,2238,1222,29979,29976,29976,29977,29988,29988,29989,29990]} 1. e4 {[%emt 0:00:14]} c5 {[%emt 0:00:21]} 2. Nf3 {[%emt 0:00:26]} d6 {[%emt 0:00:21]} 3. Bb5+ {[%emt 0:03:15]} Bd7 {[%emt 0:00:43]} 4. Bxd7+ {[%emt 0:00:31]} Qxd7 {[%emt 0:01:04]} 5. O-O {[%emt 0:00:09]} Nc6 {[%emt 0:00:08]} 6. c3 {[%emt 0:01:58]} d5 {[%emt 0:00:47]} 7. d3 {[%emt 0:01:05] B52: Sicilian: Moscow Variation with 3...Bd7.} dxe4 {[%emt 0:00:12]} 8. dxe4 {[%emt 0:00:05] [#]} Qxd1 $146 {[%emt 0:00:25]} ({Predecessor:} 8... Rd8 9. Qxd7+ Rxd7 10. Bf4 Nf6 11. Nbd2 e6 12. Rfe1 Be7 13. Nc4 O-O 14. h3 Rdd8 {1-0 (47) Kuehnast,V (1898)-Walz,R (2067) Dresden 2011}) 9. Rxd1 {[%emt 0:00:02] The position is equal.} Nf6 {[%emt 0:01:03]} 10. e5 {[%emt 0:00:39]} Nd7 {[%emt 0:00:47]} 11. e6 {[%emt 0:16:59]} fxe6 {[%emt 0:01:43]} 12. Ng5 {[%emt 0:00:04]} e5 {[%emt 0:01:59]} 13. Be3 {[%emt 0:00:26][%mdl 1024] White has compensation.} Rc8 {[%emt 0:00:41]} 14. Na3 {[%emt 0:03:29]} h6 {[%emt 0:02:09]} 15. Ne6 {[%emt 0:01:48]} b6 $1 {[%emt 0:00:06]} 16. Nb5 {[%emt 0:02:29] Threatens to win with Nec7+.} (16. b4 $5) 16... Nf6 {[%emt 0:04:26]} 17. f4 {[%emt 0:15:15]} Ng4 {[%emt 0:04:17]} (17... Kf7 $15 18. Nbc7 Ne8) 18. Bc1 {[%emt 0:00:25]} e4 {[%emt 0:03:22]} 19. h3 {[%emt 0:02:28]} Nf6 {[%emt 0:00:24]} 20. f5 $36 {[%emt 0:01:15][%mdl 2048] White has good play.} Kf7 {[%emt 0:00:31]} 21. Bf4 {[%emt 0:05:43]} (21. Nf4 $11) 21... g5 {[%emt 0:01:14]} (21... g6 $1 $17 {[%cal Rg6f5]} 22. g4 Rg8) 22. Bh2 {[%emt 0:01:08]} Bg7 {[%emt 0:00:29]} 23. Nbc7 {[%emt 0:01:14]} Ne8 {[%emt 0:02:59]} (23... g4 $11) 24. Nxe8 $1 $14 {[%emt 0:01:21] White is much more active.} Rhxe8 {[%emt 0:00:24]} 25. Re1 {[%emt 0:00:26]} (25. Rd5 $16) 25... Nd8 {[%emt 0:01:10]} (25... Be5 $11 {remains equal.}) 26. Nxg7 {[%emt 0:06:18]} (26. Rxe4 $6 Nxe6 27. Rxe6 Rcd8 $11) (26. Nc7 $142 $1 {[%cal Rc7e8]}) 26... Kxg7 $16 {[%emt 0:00:18]} 27. Rxe4 {[%emt 0:00:03]} ({Of course not} 27. Be5+ Kf7 $11) 27... Rc6 {[%emt 0:00:47]} ({Black should try} 27... e6 $14) 28. Rd1 $1 {[%emt 0:02:37]} Kf7 {[%emt 0:03:06]} (28... Nf7 $16) 29. g4 $18 {[%emt 0:05:16]} b5 {[%emt 0:01:46]} 30. Rd7 {[%emt 0:02:40]} a6 {[%emt 0:00:24]} 31. Bg3 {[%emt 0:02:16]} c4 {[%emt 0:00:38]} (31... Kf8 {might work better.} 32. Kg2 Nf7) 32. Kg2 {[%emt 0:04:56]} Kf8 {[%emt 0:01:24]} 33. Ra7 {[%emt 0:00:42]} e6 {[%emt 0:01:07]} 34. Kf3 {[%emt 0:09:37]} (34. Rd4 $1 $18 {[%cal Rd4d7] And now Rdd7 would win.} exf5 35. Bd6+ (35. gxf5 Nf7 $14) 35... Kg8 36. Ra8) 34... Nf7 $16 {[%emt 0:01:38]} 35. Rd7 {[%emt 0:04:54]} ({Better is} 35. Re2 $16) 35... Re7 $2 {[%emt 0:02:30] Black is on the road to losing.} (35... exf5 $1 $11 {and Black has nothing to worry.} 36. gxf5 Rc5) 36. Rxe7 $18 {[%emt 0:00:37]} Kxe7 {[%emt 0:00:06] [#]} 37. Rxe6+ $1 {[%emt 0:01:34]} Rxe6 {[%emt 0:00:08]} 38. fxe6 {[%emt 0:00:04]} Kxe6 {[%emt 0:00:05][%mdl 4096] Endgame [#] KB-KN} 39. Ke4 {[%emt 0:00:02]} Nh8 {[%emt 0:00:38]} 40. Kd4 {[%emt 0:00:00][%cal Oa2a4] aiming for a4!} Ng6 {[%emt 0:00:00]} (40... Kd7 {was called for.} 41. Kd5 Ng6) 41. a4 {[%emt 0:00:00]} bxa4 $2 {[%emt 0:00:00]} (41... Ne7 42. Kc5 bxa4) 42. Kxc4 {[%emt 0:00:00]} Kd7 $2 {[%emt 0:00:00]} (42... Ne7 43. Kb4 Kd7 44. Kxa4 Kc6) 43. Kd5 {[%emt 0:00:00]} Ne7+ {[%emt 0:00:00]} 44. Kc5 {[%emt 0:00:00]} Ng6 {[%emt 0:00:00]} 45. c4 {[%emt 0:00:00][%cal Bc3c4,Bc4c5,Bc5c6][%mdl 32] Strongly threatening Bh2.} Nf8 $2 {[%emt 0:00:00]} (45... a5 46. Bd6 Ke6) 46. Kd5 {[%emt 0:00:00]} Ng6 {[%emt 0:00:00]} 47. Bd6 {[%emt 0:00:00]} Nh4 {[%emt 0:00:00]} 48. c5 {[%emt 0:00:00]} Nf3 {[%emt 0:00:00]} 49. c6+ {[%emt 0:00:00]} Kc8 {[%emt 0:00:00]} 50. Bg3 {[%emt 0:05:10]} Ng1 {[%emt 0:00:00]} (50... Kd8 $142 51. Kc5 Kc8) 51. h4 {[%emt 0:00:10]} Ne2 {[%emt 0:00:00] [#]} 52. hxg5 $1 {[%emt 0:00:36]} hxg5 {[%emt 0:00:00]} 53. Be5 {[%emt 0:01:43]} Nc1 {[%emt 0:02:35]} 54. Ke4 {[%emt 0:00:59] Bf6 is the strong threat.} Nb3 {[%emt 0:01:19]} 55. Kf5 {[%emt 0:03:12]} Na5 {[%emt 0:00:11]} 56. Kxg5 {[%emt 0:02:10] Kf6 would kill now.} Nxc6 {[%emt 0:00:08]} 57. Bf6 $2 {[%emt 0:00:00]} (57. Kf6 $18 {Black must now prevent g5.} Kd7 58. g5) 57... Nb4 $2 {[%emt 0:00:40][%mdl 8192]} (57... Kd7 $16) 58. Kg6 {[%emt 0:00:07]} Kd7 {[%emt 0:02:07]} 59. Kf7 {[%emt 0:00:15] Hoping for g5.} a3 $2 {[%emt 0:00:36]} (59... Nc2 $18 60. g5 Ne3) 60. bxa3 {[%emt 0:00:16]} Nd3 {[%emt 0:00:25]} 61. g5 {[%emt 0:00:12][%cal Bg4g5,Bg5g6][%mdl 32]} Nf4 {[%emt 0:00:14]} 62. Be5 {[%emt 0:00:06]} ({Stronger than} 62. g6 Nxg6 63. Bd4 (63. Kxg6 Kc6 $11) 63... Ne7 $11) 62... Ne6 {[%emt 0:01:06]} 63. g6 {[%emt 0:00:09] White mates.} Nd8+ {[%emt 0:00:17]} 64. Kf6 {[%emt 0:00:23]} Ne6 {[%emt 0:00:07]} 65. a4 {[%emt 0:01:26]} a5 {[%emt 0:00:07]} 66. Bg3 {[%emt 0:00:24] Weighted Error Value: White=0.28 (precise) /Black=0.53} 1-0

[Event "15th Arad Open 2022"]
[Site "Arad"]
[Date "2022.08.12"]
[Round "7.8"]
[White "Ambru, Dan-Calin"]
[Black "Paraschiv, Paul-Alexandru"]
[Result "1/2-1/2"]
[ECO "E49"]
[WhiteElo "2001"]
[BlackElo "2181"]
[Annotator "TA"]
[PlyCount "42"]
[EventDate "2022.08.08"]
[EventType "swiss"]
[EventCountry "ROU"]
[SourceTitle "playchess.com"]
[Source "ChessBase"]
[SourceQuality "1"]
[TimeControl "5400+30"]

{[%evp 18,27,-10,-18,-11,-15,-6,-18,0,-16,-30,1]} 1. d4 {[%emt 0:14:13]} Nf6 {[%emt 0:00:05]} 2. c4 {[%emt 0:00:05]} e6 {[%emt 0:00:03]} 3. Nc3 {[%emt 0:00:04]} Bb4 {[%emt 0:00:03]} 4. e3 {[%emt 0:00:04]} O-O {[%emt 0:00:06]} 5. Bd3 {[%emt 0:00:02]} d5 {[%emt 0:00:05]} 6. Nge2 {[%emt 0:00:04]} c5 {[%emt 0:00:04]} 7. a3 {[%emt 0:00:04]} Bxc3+ {[%emt 0:00:03]} 8. bxc3 {[%emt 0:00:04]} dxc4 {[%emt 0:00:03]} 9. Bxc4 {[%emt 0:00:05]} Qc7 {[%emt 0:00:02]} 10. Ba2 {[%emt 0:00:06]} b6 {[%emt 0:00:06] E49: Nimzo-Indian: Rubinstein: 5 Bd3 d5 6 a3 Bxc3+ 7 bxc3.} 11. O-O {[%emt 0:00:58]} Ba6 {[%emt 0:00:06]} 12. Bb2 {[%emt 0:00:08]} Nc6 {[%emt 0:00:15]} 13. Rc1 {[%emt 0:00:49]} Rfd8 {[%emt 0:00:07]} 14. c4 {[%emt 0:03:44] [#] An even fight not without its subleties.  Weighted Error Value: White=0.05 (flawless) /Black=0.05 (flawless)} {Predecessor:} cxd4 $146 15. exd4 Na5 16. d5 e5 17. Ng3 Bxc4 18. Nf5 Qd7 19. Nh6+ gxh6 20. Bxc4 Nxc4 21. Rxc4 Qxd5 {0-1 (30) Hakobyan,A (2601)-Nakamura,H (2750) Chess.com INT 2022} 1/2-1/2

[Event "15th Arad Open 2022"]
[Site "Arad"]
[Date "2022.08.12"]
[Round "7.9"]
[White "Butolo, Alexandru-Mircea"]
[Black "Tampea, Radu"]
[Result "1/2-1/2"]
[ECO "D31"]
[WhiteElo "1863"]
[BlackElo "2093"]
[Annotator "TA"]
[PlyCount "34"]
[EventDate "2022.08.08"]
[EventType "swiss"]
[EventCountry "ROU"]
[SourceTitle "playchess.com"]
[Source "ChessBase"]
[SourceQuality "1"]
[TimeControl "5400+30"]

{[%evp 9,34,23,28,31,40,-10,31,14,22,39,35,28,29,33,34,32,44,18,35,21,22,25,16,14,17,21,14]} 1. d4 {[%emt 0:00:02]} d5 {[%emt 0:01:10]} 2. c4 {[%emt 0:00:11]} e6 {[%emt 0:01:35]} 3. Nc3 {[%emt 0:00:13]} a6 {[%emt 0:00:10]} 4. cxd5 {[%emt 0:00:06]} exd5 {[%emt 0:00:06]} 5. Nf3 {[%emt 0:00:03]} c6 {[%emt 0:00:27]} 6. Bf4 {[%emt 0:04:13] D31: Queen's Gambit Declined: Semi-Slav without ...Nf6 (+ Marshall Gambit and Noteboom) and Exchange Variation lines without ...Nf6.} Bd6 {[%emt 0:00:52]} 7. e3 {[%emt 0:01:15]} (7. Bxd6 $14 Qxd6 8. Qb3) 7... Nf6 {[%emt 0:01:06] [#]} 8. h3 $146 {[%emt 0:01:16] White is slightly better.} ({Predecessor:} 8. Bg3 Bf5 9. Qb3 Ra7 10. Nh4 Bg6 11. Be2 O-O 12. Nxg6 hxg6 13. Qc2 Re8 14. Bd3 {1-0 (48) Zubov,A (2598)-David,A (2428) Chess.com INT 2021}) 8... O-O {[%emt 0:04:04]} 9. Bd3 {[%emt 0:02:54]} Qc7 {[%emt 0:04:29]} 10. Bxd6 {[%emt 0:00:15]} Qxd6 {[%emt 0:00:06]} 11. O-O {[%emt 0:00:08]} Re8 {[%emt 0:00:23]} 12. Qc2 {[%emt 0:03:03]} Nbd7 {[%emt 0:04:15]} 13. Rad1 {[%emt 0:00:23]} Qe7 {[%emt 0:00:30]} 14. Rfe1 {[%emt 0:02:01]} Ne4 {[%emt 0:09:48]} 15. Nd2 {[%emt 0:00:23]} Ndf6 {[%emt 0:04:10]} 16. Ndxe4 {[%emt 0:00:33]} dxe4 {[%emt 0:02:51]} 17. Bc4 {[%emt 1:22:01]} Be6 {[%emt 0:01:13] Weighted Error Value: White=0.09 (flawless) /Black=0.09 (flawless)} 1/2-1/2

[Event "15th Arad Open 2022"]
[Site "Arad"]
[Date "2022.08.12"]
[Round "7.10"]
[White "Kazarian, Anna-Maja"]
[Black "Anghel, Iulian-Mihai"]
[Result "1-0"]
[ECO "C29"]
[WhiteElo "2139"]
[BlackElo "2015"]
[Annotator "TA"]
[PlyCount "43"]
[EventDate "2022.08.08"]
[EventType "swiss"]
[EventCountry "ROU"]
[SourceTitle "playchess.com"]
[Source "ChessBase"]
[SourceQuality "1"]
[TimeControl "5400+30"]

{[%evp 10,43,0,0,78,85,93,95,91,42,55,61,125,117,185,202,235,121,146,126,328,316,567,551,29975,29976,29975,29976,29976,29976,29974,29963,2057,5497,2246,1945]} 1. e4 {[%emt 0:00:02]} e5 {[%emt 0:00:08]} 2. Nc3 {[%emt 0:00:05]} Nf6 {[%emt 0:00:10]} 3. f4 {[%emt 0:00:15]} d5 {[%emt 0:01:38]} 4. fxe5 {[%emt 0:00:07]} Nxe4 {[%emt 0:00:45]} 5. Qf3 {[%emt 0:00:12]} Nxc3 {[%emt 0:00:55]} 6. bxc3 {[%emt 0:00:27]} Nc6 {[%emt 0:02:14] Recently 6...c5 got a lot of attention. C29: Vienna Game: 2...Nf6 3 f4.} (6... Be7 $11 {keeps the balance.}) 7. d4 $1 $16 {[%emt 0:17:29]} Be7 {[%emt 0:10:49]} 8. Bd3 {[%emt 0:01:15] [#]} h5 $146 {[%emt 0:05:23] White is better.} ({Predecessor:} 8... O-O 9. Ne2 f6 10. Qh5 f5 11. Nf4 Na5 12. g4 Bh4+ 13. Kd1 Bg5 14. gxf5 Bxf5 {0-1 (29) Seul,G (2372)-Ali Marandi,C (2543) Chess.com INT 2020}) 9. Ne2 {[%emt 0:02:51]} ({White should try} 9. Rb1 $16) 9... Bg4 $14 {[%emt 0:01:08]} 10. Qf2 {[%emt 0:03:35] And now 0-0 would win.} Bh4 {[%emt 0:09:27]} (10... Qd7) (10... Qd7 $1 $14) 11. g3 $16 {[%emt 0:02:34]} Be7 {[%emt 0:02:18]} (11... Bg5) (11... Bg5 $16 {was worth a try.}) 12. O-O $18 {[%emt 0:14:54]} Rf8 {[%emt 0:02:38] [#]} 13. Bf5 {[%emt 0:18:16] Against Qd7} (13. Nf4) ({Better is} 13. Nf4 $1 $18) 13... Bxf5 {[%emt 0:11:25]} 14. Qxf5 {[%emt 0:00:05]} h4 $2 {[%emt 0:00:38] [#] A mistake that costs the game.} (14... Qc8 $16 {might work better.}) 15. Nf4 $1 {[%emt 0:03:29] Threatens to win with Nh5.} g6 {[%emt 0:20:10] [#] Prevents Nh5.} (15... Qd7 16. Qxd7+ Kxd7 17. Nxd5 hxg3) 16. Nxg6 $1 {[%mdl 512]} fxg6 {[%emt 0:00:07]} (16... Qd7 17. Nxf8) 17. Qxg6+ {[%emt 0:00:31]} Kd7 {[%emt 0:00:04]} 18. Qg4+ {[%emt 0:00:24]} Ke8 {[%emt 0:00:11]} 19. Rxf8+ Bxf8 {[%emt 0:00:50]} 20. Qg6+ {[%emt 0:04:21]} Kd7 {[%emt 0:00:08]} 21. Qf5+ {[%emt 0:00:10]} Ke8 {[%emt 0:00:06]} 22. e6 {[%emt 0:00:35] Weighted Error Value: White=0.09 (flawless) /Black=1.15} 1-0

[Event "15th Arad Open 2022"]
[Site "Arad"]
[Date "2022.08.12"]
[Round "7.11"]
[White "Coicev, Matei-Andrei"]
[Black "Tablan, Matei-Christian"]
[Result "1-0"]
[ECO "B45"]
[WhiteElo "2087"]
[BlackElo "1928"]
[Annotator "TA"]
[PlyCount "55"]
[EventDate "2022.08.08"]
[EventType "swiss"]
[EventCountry "ROU"]
[SourceTitle "playchess.com"]
[Source "ChessBase"]
[SourceQuality "1"]
[TimeControl "5400+30"]

{[%evp 27,55,0,0,0,8,0,21,16,29,48,189,205,188,169,206,201,305,304,708,708,689,674,877,831,29994,420,29995,29992,29995,29996]} 1. e4 {[%emt 0:00:32]} c5 {[%emt 0:00:12]} 2. Nf3 {[%emt 0:00:57]} e6 {[%emt 0:00:16]} 3. d4 {[%emt 0:00:48]} cxd4 {[%emt 0:00:08]} 4. Nxd4 {[%emt 0:00:43]} Nf6 {[%emt 0:00:31]} 5. Nc3 {[%emt 0:00:54]} Nc6 {[%emt 0:00:18]} 6. Nxc6 {[%emt 0:01:03]} bxc6 {[%emt 0:00:08]} 7. e5 {[%emt 0:01:14]} Nd5 {[%emt 0:00:11]} 8. Ne4 {[%emt 0:00:52]} Qc7 {[%emt 0:00:08]} 9. f4 {[%emt 0:01:02]} Qb6 {[%emt 0:01:12]} 10. c4 {[%emt 0:00:54]} Bb4+ {[%emt 0:00:08]} 11. Ke2 {[%emt 0:00:55]} f5 {[%emt 0:00:08]} 12. Nf2 {[%emt 0:02:14]} Ba6 {[%emt 0:08:45]} 13. Kf3 {[%emt 0:01:06]} Ne7 {[%emt 0:00:25]} 14. Be3 {[%emt 0:01:29]} Bc5 {[%emt 0:00:09]} 15. Bxc5 {[%emt 0:00:57] B45: Sicilian Four Knights.} Qxc5 {[%emt 0:00:05]} 16. Qd6 {[%emt 0:01:30]} Qb6 {[%emt 0:00:23]} 17. Be2 {[%emt 0:16:42] The position is equal.} g5 {[%emt 0:37:53]} 18. fxg5 {[%emt 0:20:50] [#]} f4 $146 {[%emt 0:18:43]} (18... Ng6 $14 19. h4 Qb8 20. Qxb8+ Rxb8) ({Predecessor:} 18... Ng6 19. h4 Qb8 20. Qxb8+ Rxb8 21. b3 Nxe5+ 22. Kf4 Ng6+ 23. Kg3 d6 24. h5 Ne5 {1-0 (60) Milliet,S (2390)-Loiseau,Q (2455) Chartres 2021}) 19. Ng4 $18 {[%emt 0:04:17]} Nf5 {[%emt 0:01:37]} 20. Nf6+ {[%emt 0:07:16]} Kf7 {[%emt 0:00:05] [#] ( -> ...Qe3+)} 21. Qd2 {[%emt 0:01:55] Rad1 is the strong threat. Really sharp!} ({Don't do} 21. Qxd7+ $6 Kg6 22. Qd2 (22. Qd3 Rad8 $16) 22... Rad8 $14) 21... Nd4+ {[%emt 0:27:06]} (21... Rad8 $142 22. Rad1 d5) 22. Kg4 {[%emt 0:03:36]} ({Don't take} 22. Kxf4 Nxe2+ 23. Qxe2 Qd4+ 24. Kg3 Bxc4 $18) 22... Ke7 {[%emt 0:02:26]} (22... Rad8 23. Bd3 (23. Kxf4 d6 $16) 23... d6 24. Qxf4 dxe5 25. Qxe5 Nf5) 23. Rad1 {[%emt 0:06:09]} c5 {[%emt 0:00:10]} 24. b4 {[%emt 0:01:00]} Nxe2 {[%emt 0:00:49]} 25. Qxe2 {[%emt 0:03:22]} Qxb4 {[%emt 0:00:31]} 26. Rxd7+ {[%emt 0:02:21]} Kf8 {[%emt 0:00:01]} 27. Qe4 {[%emt 0:03:41]} h5+ {[%emt 0:00:35]} 28. Kh4 {[%emt 0:00:38] White took control after the opening.  Weighted Error Value: White=0.02 (flawless) /Black=1.05} 1-0